[Event "DMP-III LIGA Senior PK 2020"]
[Site "Bystre"]
[Date "2020.07.10"]
[Round "4.9"]
[White "Janzer, Hubert"]
[Black "Babiarz, Arkadiusz"]
[Result "1/2-1/2"]
[ECO "D00"]
[WhiteElo "1893"]
[BlackElo "1840"]
[Annotator "NA RC"]
[PlyCount "160"]
[EventDate "2020.07.05"]
[EventType "team-tourn"]
[EventCountry "POL"]
[SourceTitle "playchess.com"]
[Source "ChessBase"]
[SourceQuality "1"]
[TimeControl "5400+30"]

1. d4 {[%emt 0:00:00]} d5 {[%emt 0:00:00]} 2. Bf4 {[%emt 0:00:00]} c5 {[%emt 0:00:00]} 3. c3 {[%emt 0:00:03]} Nc6 {[%emt 0:00:00]} 4. e3 {[%emt 0:00:05]} Nf6 {[%emt 0:00:00]} 5. Nd2 {[%emt 0:00:04]} e6 {[%emt 0:00:07]} 6. Ngf3 {[%emt 0:00:25]} Bd6 {[%emt 0:00:09]} 7. Bg3 {[%emt 0:00:12]} O-O {[%emt 0:00:46]} 8. Bd3 {[%emt 0:00:11]} b6 {[%emt 0:00:34]} 9. Ne5 {[%emt 0:00:22]} Bb7 {[%emt 0:00:06]} 10. O-O {[%emt 0:02:39]} Qc7 {[%emt 0:01:31]} 11. f4 {[%emt 0:00:41]} Ne7 {[%emt 0:00:33] D02: 1 d4 d5 2 Nf3 sidelines, including 2...Nf6 3 g3 and 2...Nf6 3 Bf4.} 12. Bh4 {[%emt 0:00:57]} Ne4 {[%emt 0:01:56]} 13. Bxe7 {[%emt 0:21:16]} Qxe7 {[%emt 0:01:41]} 14. Bxe4 {[%emt 0:05:59]} dxe4 {[%emt 0:00:08]} 15. Qc2 {[%emt 0:00:17] [#]} f6 $146 {[%emt 0:01:33]} ({Predecessor:} 15... f5 16. Ndc4 Bc7 17. a4 Kh8 18. Rad1 Bd5 19. Kh1 Rac8 20. Qe2 Bb8 21. Rc1 Qe8 {0-1 (33) Ning,K (2157)-Shuvalova,P (2388) Moscow 2018}) 16. Nec4 {[%emt 0:03:25]} cxd4 {[%emt 0:00:38]} 17. exd4 {[%emt 0:06:31]} Rac8 {[%emt 0:01:54]} 18. b3 {[%emt 0:08:48]} b5 {[%emt 0:13:14]} 19. Ne3 {[%emt 0:02:34]} Bb4 {[%emt 0:02:52]} 20. Nb1 {[%emt 0:06:51]} ({Better is} 20. Ndc4 $15) 20... Bxc3 {[%emt 0:04:08]} 21. Nxc3 {[%emt 0:00:19]} b4 {[%emt 0:00:04]} 22. Nc4 {[%emt 0:00:25]} bxc3 {[%emt 0:00:10]} 23. Qxc3 {[%emt 0:00:07]} Rfd8 {[%emt 0:01:45]} 24. Rfd1 {[%emt 0:01:20]} Rd5 {[%emt 0:17:27]} 25. Qe3 {[%emt 0:02:18]} Rcd8 {[%emt 0:01:34]} 26. Rd2 {[%emt 0:01:27]} Kh8 {[%emt 0:08:27]} 27. Qxe4 {[%emt 0:04:52]} Rxd4 {[%emt 0:00:37]} 28. Qxd4 {[%emt 0:00:17]} Rxd4 {[%emt 0:00:05]} 29. Rxd4 {[%emt 0:00:04]} h6 {[%emt 0:04:08]} 30. Rad1 {[%emt 0:04:02]} Qc5 {[%emt 0:00:56]} 31. Kh1 {[%emt 0:00:06]} Kh7 {[%emt 0:01:27]} 32. a3 {[%emt 0:05:54]} Bd5 {[%emt 0:00:39]} 33. b4 {[%emt 0:00:37]} Qc6 {[%emt 0:00:21]} 34. Ne3 {[%emt 0:00:22]} Bb3 {[%emt 0:00:16]} 35. R1d3 {[%emt 0:05:26]} Qc1+ {[%emt 0:00:06]} 36. Nd1 {[%emt 0:00:07]} Qxa3 {[%emt 0:00:37]} 37. h3 {[%emt 0:00:15]} Qa1 {[%emt 0:09:18]} 38. Kh2 {[%emt 0:00:45]} Bc2 {[%emt 0:00:49]} 39. Rd2 {[%emt 0:00:17]} a5 {[%emt 0:05:30]} 40. Ne3 {[%emt 0:01:41]} Bb3 {[%emt 0:00:27]} 41. b5 {[%emt 0:02:56]} Bd5 {[%emt 0:04:14]} (41... Qc1 $17 42. b6 Qc6) 42. Nxd5 {[%emt 0:00:24]} exd5 {[%emt 0:00:01]} 43. Rxd5 {[%emt 0:00:10]} a4 {[%emt 0:00:57]} 44. Rd7 {[%emt 0:03:52]} Qb1 {[%emt 0:00:29]} 45. Ra7 {[%emt 0:00:30]} (45. R2d4 $5 {[%cal Rd4a4]}) 45... Qxb5 {[%emt 0:00:49]} 46. Rdd7 {[%emt 0:00:07]} Kg6 {[%emt 0:00:22]} (46... Qf1 $11) 47. Rdb7 {[%emt 0:01:25]} Qc4 {[%emt 0:01:02]} (47... Qc6 $1 $14) 48. Rxg7+ {[%emt 0:00:26]} Kf5 {[%emt 0:00:06]} 49. Ra5+ {[%emt 0:00:28]} Ke4 $16 {[%emt 0:00:07]} 50. Rga7 {[%emt 0:00:31]} Qc1 {[%emt 0:01:00]} 51. Rxa4+ {[%emt 0:00:05]} Kf5 {[%emt 0:06:59]} 52. R7a5+ {[%emt 0:01:47]} Kg6 {[%emt 0:00:47]} 53. f5+ {[%emt 0:00:12]} Kh5 {[%emt 0:00:52]} 54. Ra2 {[%emt 0:04:29]} Kg5 {[%emt 0:01:58]} 55. R5a3 {[%emt 0:01:40]} Qf4+ {[%emt 0:02:48]} 56. Rg3+ {[%emt 0:02:11]} Kxf5 {[%emt 0:00:06]} 57. Raa3 {[%emt 0:00:32]} Ke6 {[%emt 0:00:31]} 58. Raf3 {[%emt 0:00:22]} Qd6 {[%emt 0:00:28]} 59. Kg1 {[%emt 0:00:22]} Qd1+ {[%emt 0:00:38]} 60. Rf1 {[%emt 0:00:07]} Qd4+ {[%emt 0:00:13]} 61. Kh1 {[%emt 0:00:06]} Kf7 {[%emt 0:01:17]} 62. Rgf3 {[%emt 0:00:17]} Qe5 {[%emt 0:00:13]} 63. Rf5 {[%emt 0:00:35]} Qb2 {[%emt 0:00:19]} 64. Kh2 {[%emt 0:00:08]} Qb8+ {[%emt 0:00:16]} 65. R1f4 {[%emt 0:00:17]} Qd6 {[%emt 0:00:33]} 66. Kg3 {[%emt 0:00:15]} Kg6 {[%emt 0:00:32]} 67. Kh4 {[%emt 0:00:27]} Qe6 {[%emt 0:00:41]} 68. Rxf6+ {[%emt 0:00:28]} Qxf6+ {[%emt 0:00:05]} 69. Rxf6+ {[%emt 0:00:09]} Kxf6 {[%emt 0:00:03]} 70. Kg4 {[%emt 0:00:11]} Kg6 {[%emt 0:00:21]} 71. h4 {[%emt 0:00:07]} Kf6 {[%emt 0:00:25]} 72. Kf4 {[%emt 0:00:55]} Kg6 {[%emt 0:01:13]} 73. g4 {[%emt 0:00:28]} Kf6 {[%emt 0:00:06]} 74. Ke4 {[%emt 0:01:33]} Ke6 {[%emt 0:00:14]} 75. Kd4 {[%emt 0:00:11]} Kd6 {[%emt 0:00:23]} 76. g5 {[%emt 0:00:47]} hxg5 {[%emt 0:00:37]} 77. hxg5 {[%emt 0:00:04]} Ke6 {[%emt 0:00:07]} 78. Ke4 {[%emt 0:00:07]} Kf7 {[%emt 0:00:15]} 79. Kf5 {[%emt 0:00:05]} Kg7 {[%emt 0:00:09]} 80. g6 {[%emt 0:00:15]} Kg8 {[%emt 0:00:06]} 1/2-1/2

[Event "DMP-III LIGA Senior PK 2020"]
[Site "Bystre"]
[Date "2020.07.10"]
[Round "4.10"]
[White "Ziemniak, Piotr"]
[Black "Lach, Tomasz"]
[Result "0-1"]
[ECO "B15"]
[WhiteElo "1791"]
[BlackElo "1833"]
[Annotator "NA RC"]
[PlyCount "112"]
[EventDate "2020.07.05"]
[EventType "team-tourn"]
[EventCountry "POL"]
[SourceTitle "playchess.com"]
[Source "ChessBase"]
[SourceQuality "1"]
[TimeControl "5400+30"]

1. e4 {[%emt 0:00:00]} c6 {[%emt 0:00:00]} 2. d4 {[%emt 0:00:10]} d5 {[%emt 0:00:00]} 3. Nc3 {[%emt 0:00:04]} a6 {[%emt 0:00:02]} 4. Bd3 {[%emt 0:00:58]} dxe4 {[%emt 0:02:55]} 5. Bxe4 {[%emt 0:01:30]} Nf6 {[%emt 0:00:08]} 6. Bf3 {[%emt 0:01:20] B15: Caro-Kann: 3 Nc3: 3...g6 and 3...dxe4 4 Nxe4 Nf6 5 Nxf6+ exf6.} Bf5 {[%emt 0:00:15]} 7. Nge2 {[%emt 0:01:04]} (7. g4 $5 {[%cal Rg4f5]} Be6 8. g5 $11) 7... e6 {[%emt 0:00:15]} 8. Ng3 {[%emt 0:02:32]} Bg6 {[%emt 0:00:13] [#]} 9. O-O $146 {[%emt 0:03:06]} ({Predecessor:} 9. Nce2 Bd6 10. h4 h6 11. Bf4 Be7 12. c4 Nbd7 13. h5 Bh7 14. O-O O-O 15. Nc3 {½-½ (58) Sihite,C (2206)-Zhao,X (2508) Tromsoe 2014}) 9... Be7 {[%emt 0:00:23]} 10. Bf4 {[%emt 0:01:59]} O-O {[%emt 0:00:12]} 11. Qd2 {[%emt 0:02:54]} Nbd7 {[%emt 0:01:06]} 12. h4 {[%emt 0:04:38]} h6 {[%emt 0:05:13]} 13. Rad1 {[%emt 0:03:19]} Nb6 {[%emt 0:01:37]} 14. h5 {[%emt 0:02:26]} Bh7 $1 {[%emt 0:00:27]} 15. Qe2 {[%emt 0:02:27]} Re8 {[%emt 0:05:02]} 16. Rfe1 {[%emt 0:01:09]} Nbd5 {[%emt 0:02:09]} 17. Nxd5 {[%emt 0:01:09]} Nxd5 {[%emt 0:00:22]} 18. Bd2 {[%emt 0:02:09]} (18. Bc1 $11 {remains equal.}) 18... Qc7 {[%emt 0:02:19]} ({Black should try} 18... Bxc2 $17 19. Rc1 Bh7) 19. c3 {[%emt 0:09:48]} Rad8 {[%emt 0:01:29]} 20. Bxd5 {[%emt 0:08:21]} cxd5 {[%emt 0:02:36]} 21. Qg4 {[%emt 0:03:29]} Kh8 {[%emt 0:01:17]} 22. Bf4 $11 {[%emt 0:07:06]} Bd6 {[%emt 0:00:47]} 23. Bxd6 {[%emt 0:04:07]} Qxd6 {[%emt 0:00:08]} 24. Ne2 {[%emt 0:02:12]} b5 {[%emt 0:01:35]} 25. Qf4 {[%emt 0:03:30]} Qxf4 {[%emt 0:01:21]} 26. Nxf4 {[%emt 0:00:05]} a5 {[%emt 0:01:38]} 27. Nd3 {[%emt 0:01:37]} Bxd3 {[%emt 0:00:06]} 28. Rxd3 {[%emt 0:00:04]} Rb8 {[%emt 0:03:21]} 29. a3 {[%emt 0:04:40]} Rec8 {[%emt 0:01:03]} 30. Re2 {[%emt 0:05:38]} b4 {[%emt 0:01:38]} 31. cxb4 {[%emt 0:03:44]} axb4 {[%emt 0:00:06]} 32. Rb3 {[%emt 0:00:32]} bxa3 {[%emt 0:00:53]} 33. Rxb8 {[%emt 0:00:33]} Rxb8 {[%emt 0:00:05]} 34. bxa3 {[%emt 0:00:05]} Rb1+ {[%emt 0:00:47]} 35. Kh2 {[%emt 0:00:03]} Ra1 {[%emt 0:00:11]} 36. Re3 {[%emt 0:00:12]} Rd1 {[%emt 0:02:25]} 37. Rb3 {[%emt 0:00:52]} Rxd4 {[%emt 0:00:36]} 38. Rb4 {[%emt 0:01:34]} Rd2 {[%emt 0:01:02]} 39. Kg3 {[%emt 0:00:28]} Rd3+ {[%emt 0:00:15]} 40. Kf4 {[%emt 0:01:06]} Rxa3 {[%emt 0:00:38]} 41. Rb7 {[%emt 0:04:06]} f6 {[%emt 0:02:12]} 42. Rb6 {[%emt 0:00:50]} Ra4+ {[%emt 0:00:28]} 43. Kf3 {[%emt 0:02:28]} e5 {[%emt 0:01:30]} 44. g3 {[%emt 0:03:12]} Ra2 {[%emt 0:00:55]} 45. g4 {[%emt 0:01:41]} Ra3+ {[%emt 0:00:49]} 46. Ke2 {[%emt 0:00:29]} Ra4 {[%emt 0:04:44]} 47. f3 {[%emt 0:00:55]} Rf4 {[%emt 0:01:24]} 48. Rd6 {[%emt 0:01:54]} e4 {[%emt 0:01:44]} 49. Rxd5 {[%emt 0:03:18]} exf3+ {[%emt 0:00:00]} 50. Kf2 {[%emt 0:00:00]} Rxg4 {[%emt 0:00:01]} 51. Kxf3 {[%emt 0:00:08]} Rg5 {[%emt 0:00:11]} 52. Rd8+ {[%emt 0:03:42]} Kh7 {[%emt 0:00:15]} 53. Kf4 {[%emt 0:00:09]} Rxh5 {[%emt 0:00:14]} 54. Kg4 {[%emt 0:00:08]} Ra5 {[%emt 0:00:43]} 55. Kh4 {[%emt 0:00:23]} Kg6 {[%emt 0:00:12]} 56. Rd7 {[%emt 0:00:34]} Ra4+ {[%emt 0:00:32]} 0-1

[Event "DMP-III LIGA Senior PK 2020"]
[Site "Bystre"]
[Date "2020.07.10"]
[Round "4.11"]
[White "Lach, Mateusz"]
[Black "Wozniak, Grzegorz"]
[Result "1/2-1/2"]
[ECO "A52"]
[WhiteElo "1674"]
[BlackElo "1608"]
[Annotator "NA RC"]
[PlyCount "211"]
[EventDate "2020.07.05"]
[EventType "team-tourn"]
[EventCountry "POL"]
[SourceTitle "playchess.com"]
[Source "ChessBase"]
[SourceQuality "1"]
[TimeControl "5400+30"]

1. d4 {[%emt 0:00:00]} Nf6 {[%emt 0:00:00]} 2. c4 {[%emt 0:00:00]} e5 {[%emt 0:00:01]} 3. dxe5 {[%emt 0:01:17]} Ng4 {[%emt 0:00:06]} 4. e6 {[%emt 0:01:50]} dxe6 {[%emt 0:11:42]} 5. Qxd8+ {[%emt 0:00:14]} Kxd8 {[%emt 0:00:02]} 6. a3 {[%emt 0:01:34]} Bc5 {[%emt 0:01:19]} 7. e3 {[%emt 0:00:15]} a5 {[%emt 0:00:14]} 8. b3 {[%emt 0:00:58]} Ke7 {[%emt 0:01:13]} 9. Bb2 {[%emt 0:01:44]} f6 {[%emt 0:00:18]} 10. Be2 {[%emt 0:01:17]} e5 {[%emt 0:00:52]} 11. h3 {[%emt 0:00:19]} Nh6 {[%emt 0:00:13]} 12. Bf3 {[%emt 0:00:41]} c6 {[%emt 0:01:03]} 13. Ne2 {[%emt 0:01:47]} Be6 {[%emt 0:01:25]} 14. Nbc3 {[%emt 0:01:19]} Nd7 {[%emt 0:00:54]} 15. O-O {[%emt 0:00:59]} Nf7 {[%emt 0:00:33]} 16. Ng3 {[%emt 0:02:07]} g6 {[%emt 0:05:09]} 17. Rfd1 {[%emt 0:01:04]} Rhd8 {[%emt 0:03:41]} 18. Be2 {[%emt 0:04:19]} f5 {[%emt 0:04:50]} 19. Na4 {[%emt 0:05:07]} Bd6 {[%emt 0:02:13]} 20. Bc3 {[%emt 0:02:52]} e4 {[%emt 0:07:38]} 21. Kf1 {[%emt 0:05:14]} Be5 {[%emt 0:01:22]} 22. Bxe5 {[%emt 0:01:42]} Nfxe5 {[%emt 0:00:07]} 23. f4 {[%emt 0:02:15]} Nf7 {[%emt 0:03:15]} 24. Nh1 {[%emt 0:01:09]} b5 {[%emt 0:09:27]} 25. Nc3 {[%emt 0:19:37]} bxc4 {[%emt 0:04:59]} 26. bxc4 {[%emt 0:05:17]} Nd6 {[%emt 0:01:29]} 27. Rd4 {[%emt 0:05:29]} Nc5 {[%emt 0:04:54]} 28. Rb1 {[%emt 0:03:10]} Rab8 {[%emt 0:00:43]} 29. g4 {[%emt 0:01:06]} Nb3 {[%emt 0:05:02]} 30. Rdd1 {[%emt 0:01:25]} Nxc4 {[%emt 0:01:48]} 31. Bxc4 {[%emt 0:03:29]} Bxc4+ {[%emt 0:01:01]} 32. Ke1 {[%emt 0:01:35]} Nc5 {[%emt 0:02:07]} 33. Nf2 {[%emt 0:04:14]} Nd3+ {[%emt 0:04:06]} 34. Nxd3 {[%emt 0:00:56]} Bxd3 {[%emt 0:00:07]} 35. Rbc1 {[%emt 0:02:15]} Rb2 {[%emt 0:01:47]} 36. Rd2 {[%emt 0:01:04]} Rxd2 {[%emt 0:02:00]} 37. Kxd2 {[%emt 0:00:02]} Bb5+ {[%emt 0:03:02]} 38. Ke1 {[%emt 0:00:58]} Rd3 {[%emt 0:01:00]} 39. Kf2 {[%emt 0:01:46]} Rd2+ {[%emt 0:00:51]} 40. Kg3 {[%emt 0:00:35]} Kd6 {[%emt 0:02:05]} 41. Rd1 {[%emt 0:03:49]} Rxd1 {[%emt 0:02:23]} 42. Nxd1 {[%emt 0:00:01]} Kd5 {[%emt 0:00:28]} 43. Nb2 {[%emt 0:00:40]} c5 {[%emt 0:00:49]} 44. gxf5 {[%emt 0:00:48]} gxf5 {[%emt 0:00:02]} 45. Kf2 {[%emt 0:00:18]} c4 {[%emt 0:02:02]} 46. Nd1 {[%emt 0:01:12]} c3 {[%emt 0:00:14]} 47. Nxc3+ {[%emt 0:00:05]} Kc4 {[%emt 0:00:05]} 48. Ne2 {[%emt 0:00:24]} Bd7 {[%emt 0:00:29]} 49. Nd4 {[%emt 0:00:40]} a4 {[%emt 0:00:25]} 50. Ke2 {[%emt 0:01:53]} Kc3 {[%emt 0:00:40]} 51. h4 {[%emt 0:00:04]} h5 {[%emt 0:03:04]} 52. Ke1 {[%emt 0:00:56]} Kd3 {[%emt 0:02:34]} 53. Kf2 {[%emt 0:00:11]} Kd2 {[%emt 0:00:08]} 54. Ne2 {[%emt 0:00:24]} Be8 {[%emt 0:00:11]} 55. Nd4 {[%emt 0:00:15]} Bg6 {[%emt 0:01:27]} 56. Ne6 {[%emt 0:00:35]} Kc2 {[%emt 0:00:52]} 57. Nc5 {[%emt 0:00:42]} Be8 {[%emt 0:00:39]} 58. Ke2 {[%emt 0:00:00]} Kb2 {[%emt 0:00:13]} 59. Kd2 {[%emt 0:00:01]} Kxa3 {[%emt 0:00:41]} 60. Kc3 {[%emt 0:00:01]} Ka2 {[%emt 0:00:22]} 61. Kc2 {[%emt 0:00:39]} Bb5 {[%emt 0:01:57]} 62. Kc1 {[%emt 0:00:50]} Ka3 {[%emt 0:00:50]} 63. Kb1 {[%emt 0:02:06]} Kb4 64. Ne6 Be8 {[%emt 0:00:46]} 65. Kc2 {[%emt 0:03:14]} a3 {[%emt 0:00:54]} 66. Nd4 {[%emt 0:01:16]} Bd7 {[%emt 0:00:09]} 67. Ne2 {[%emt 0:00:15]} a2 {[%emt 0:01:39]} 68. Kb2 {[%emt 0:00:12]} a1=B+ {[%emt 0:00:50]} 69. Kxa1 {[%emt 0:00:15]} Kc4 {[%emt 0:00:05]} 70. Ng3 {[%emt 0:00:30]} Kd3 {[%emt 0:00:04]} 71. Nxh5 {[%emt 0:00:26]} Kxe3 {[%emt 0:00:06]} 72. Nf6 {[%emt 0:00:34]} Be6 {[%emt 0:01:32]} 73. h5 {[%emt 0:00:18]} Kf3 {[%emt 0:01:55]} 74. h6 {[%emt 0:00:18]} e3 {[%emt 0:00:03]} 75. h7 {[%emt 0:00:18]} e2 {[%emt 0:00:03]} 76. h8=Q {[%emt 0:00:08]} e1=Q+ {[%emt 0:00:07]} 77. Kb2 {[%emt 0:00:06]} Qb4+ {[%emt 0:00:20]} 78. Kc2 {[%emt 0:02:17]} Bb3+ {[%emt 0:00:40]} 79. Kb2 {[%emt 0:01:17]} Bc4+ {[%emt 0:01:12]} 80. Kc2 {[%emt 0:02:05]} Qb3+ {[%emt 0:00:17]} 81. Kc1 {[%emt 0:01:20]} Qc3+ {[%emt 0:00:41]} 82. Kb1 {[%emt 0:00:16]} Qb3+ {[%emt 0:01:22]} 83. Kc1 {[%emt 0:00:01]} Qa3+ {[%emt 0:01:25]} 84. Kc2 {[%emt 0:00:27]} Qb3+ {[%emt 0:00:57]} 85. Kc1 {[%emt 0:00:11]} Qc3+ 86. Kb1 Bd3+ {[%emt 0:01:35]} 87. Ka2 {[%emt 0:00:10]} Qc4+ {[%emt 0:00:50]} 88. Ka3 {[%emt 0:00:32]} Qc5+ {[%emt 0:00:35]} 89. Kb3 {[%emt 0:00:57]} Qb5+ {[%emt 0:00:14]} 90. Ka3 {[%emt 0:00:42]} Qc5+ {[%emt 0:00:18]} 91. Kb3 {[%emt 0:00:01]} Bc4+ {[%emt 0:00:28]} 92. Kc3 {[%emt 0:00:12]} Bb5+ {[%emt 0:00:19]} 93. Kb3 {[%emt 0:00:37]} Qc4+ {[%emt 0:00:05]} 94. Kb2 {[%emt 0:00:17]} Qb4+ {[%emt 0:00:09]} 95. Kc1 {[%emt 0:00:42]} Qc3+ {[%emt 0:00:29]} 96. Kb1 {[%emt 0:00:05]} Bd3+ {[%emt 0:01:18]} 97. Ka2 {[%emt 0:00:04]} Bc4+ {[%emt 0:00:31]} 98. Kb1 {[%emt 0:00:05]} Qb4+ {[%emt 0:01:05]} 99. Kc1 {[%emt 0:00:26]} Qa3+ {[%emt 0:00:31]} 100. Kc2 {[%emt 0:00:37]} Qb3+ {[%emt 0:00:09]} 101. Kc1 {[%emt 0:00:12]} Qe3+ {[%emt 0:00:57]} 102. Kc2 {[%emt 0:00:53]} Qe2+ {[%emt 0:00:29]} 103. Kc3 {[%emt 0:00:22]} Qd3+ {[%emt 0:00:07]} 104. Kb4 {[%emt 0:00:12]} Qb3+ {[%emt 0:00:10]} 105. Kc5 {[%emt 0:00:00]} Qb5+ {[%emt 0:00:36]} 106. Kd4 {[%emt 0:00:12]} 1/2-1/2

[Event "DMP-III LIGA Senior PK 2020"]
[Site "Bystre"]
[Date "2020.07.10"]
[Round "4.16"]
[White "Mikula, Michal"]
[Black "Wrobel, Dariusz"]
[Result "1-0"]
[ECO "C41"]
[WhiteElo "1858"]
[BlackElo "1427"]
[Annotator "NA RC"]
[PlyCount "63"]
[EventDate "2020.07.05"]
[EventType "team-tourn"]
[EventCountry "POL"]
[SourceTitle "playchess.com"]
[Source "ChessBase"]
[SourceQuality "1"]
[TimeControl "5400+30"]

{[%evp 8,40,27,29,19,22,38,35,47,7,34,30,32,14,27,-18,0,32767,32767,32767,32767,32767,32767,32767,96,55,85,46,45,50,108,125,119,164,202]} 1. e4 {[%emt 0:00:00]} e5 {[%emt 0:00:00]} 2. Nf3 {[%emt 0:00:00]} d6 {[%emt 0:00:00]} 3. Bc4 {[%emt 0:00:51]} Be7 {[%emt 0:00:00]} 4. d4 {[%emt 0:02:22]} exd4 {[%emt 0:00:09]} 5. Nxd4 {[%emt 0:01:27]} Nf6 {[%emt 0:01:05]} 6. Nc3 {[%emt 0:01:42]} Bd7 {[%emt 0:00:22]} 7. Be3 {[%emt 0:01:19] C41: Philidor Defence.} Nc6 {[%emt 0:00:14]} 8. f3 {[%emt 0:01:14]} Nxd4 {[%emt 0:00:19]} (8... Ne5 $5 {[%cal Re5c4]} 9. Be2 c5 $11) 9. Bxd4 {[%emt 0:00:19]} a6 {[%emt 0:00:09]} 10. Qd2 {[%emt 0:06:28]} O-O {[%emt 0:00:11] [#]} 11. g4 $146 {[%emt 0:00:35]} ({Predecessor:} 11. O-O Bc6 12. Nd5 Nxd5 13. exd5 Bd7 14. Rae1 Bf6 15. Re2 Re8 16. Rxe8+ Bxe8 17. Re1 Bxd4+ 18. Qxd4 {1-0 (42) Nikolov,S-Genov,D Sofia 2008}) 11... b5 {[%emt 0:00:19]} 12. Bd3 {[%emt 0:03:14]} Bc6 {[%emt 0:00:33]} 13. O-O-O {[%emt 0:01:09]} b4 {[%emt 0:00:43]} 14. Ne2 {[%emt 0:00:41]} a5 {[%emt 0:01:33]} 15. Ng3 {[%emt 0:02:19]} Nd7 {[%emt 0:00:58]} 16. Nf5 {[%emt 0:08:46]} Bf6 {[%emt 0:00:11]} 17. Bxf6 {[%emt 0:01:15]} Qxf6 {[%emt 0:00:25]} 18. g5 {[%emt 0:02:22]} Qd8 {[%emt 0:00:16]} ({Better is} 18... Qe5 $14) 19. h4 {[%emt 0:06:26]} Ne5 {[%emt 0:00:49]} 20. Be2 {[%emt 0:00:10]} Bd7 $18 {[%emt 0:01:36]} (20... f6 $16 {might work better.} 21. gxf6 Qxf6) 21. h5 {[%emt 0:06:03]} Bxf5 {[%emt 0:00:27]} 22. exf5 f6 {[%emt 0:00:43]} 23. f4 {[%emt 0:00:54]} Nd7 {[%emt 0:00:28]} 24. Bc4+ {[%emt 0:02:39]} Kh8 {[%emt 0:00:12]} 25. h6 {[%emt 0:00:09]} fxg5 {[%emt 0:01:07]} 26. hxg7+ {[%emt 0:00:42]} Kxg7 {[%emt 0:00:18]} 27. Qd4+ {[%emt 0:01:00]} Qf6 {[%emt 0:00:29]} 28. Qd2 {[%emt 0:04:58]} Qxf5 {[%emt 0:00:27]} 29. Bd3 {[%emt 0:00:08]} Qe6 {[%emt 0:02:15]} 30. Rxh7+ {[%emt 0:00:29]} Kg8 {[%emt 0:00:37]} 31. Re1 {[%emt 0:06:48]} Qxa2 {[%emt 0:00:34]} 32. Qg2 {[%emt 0:00:09]} 1-0

[Event "DMP-III LIGA Senior PK 2020"]
[Site "Bystre"]
[Date "2020.07.10"]
[Round "4.17"]
[White "Kielb, Miroslaw"]
[Black "Sygulski, Piotr"]
[Result "0-1"]
[ECO "C11"]
[WhiteElo "1394"]
[BlackElo "1652"]
[Annotator "NA RC"]
[PlyCount "132"]
[EventDate "2020.07.05"]
[EventType "team-tourn"]
[EventCountry "POL"]
[SourceTitle "playchess.com"]
[Source "ChessBase"]
[SourceQuality "1"]
[TimeControl "5400+30"]

1. e4 {[%emt 0:00:00]} e6 {[%emt 0:00:00]} 2. d4 {[%emt 0:00:00]} d5 {[%emt 0:00:00]} 3. Nc3 {[%emt 0:00:11]} Nf6 {[%emt 0:00:04]} 4. Bg5 {[%emt 0:03:27]} dxe4 {[%emt 0:00:23]} 5. Nxe4 {[%emt 0:00:27]} Nbd7 {[%emt 0:00:29]} 6. Nf3 {[%emt 0:03:20]} Be7 {[%emt 0:00:42]} 7. Bd3 {[%emt 0:01:38]} Nxe4 {[%emt 0:03:13]} 8. Bxe7 {[%emt 0:00:27]} Qxe7 {[%emt 0:00:13]} 9. Bxe4 {[%emt 0:00:30]} Nf6 {[%emt 0:01:07]} 10. Bd3 {[%emt 0:01:49]} O-O {[%emt 0:03:24]} 11. O-O {[%emt 0:00:59]} b6 {[%emt 0:00:55]} 12. Re1 {[%emt 0:04:24]} Bb7 {[%emt 0:00:20]} 13. c4 {[%emt 0:01:16]} Qd6 {[%emt 0:02:03]} 14. Ng5 {[%emt 0:10:10]} Rad8 {[%emt 0:06:06]} 15. Qc2 {[%emt 0:01:51]} h6 {[%emt 0:09:53]} 16. Ne4 {[%emt 0:03:50]} Qxd4 {[%emt 0:02:54]} 17. Nxf6+ {[%emt 0:04:35]} Qxf6 {[%emt 0:00:11]} 18. Re3 {[%emt 0:01:50]} Rd7 {[%emt 0:04:46]} 19. Rae1 {[%emt 0:01:48]} Rfd8 {[%emt 0:00:59]} 20. Rg3 {[%emt 0:02:07]} Rd4 {[%emt 0:03:39]} 21. Qc3 {[%emt 0:01:38]} c5 {[%emt 0:01:40]} 22. h3 {[%emt 0:02:44]} Kh8 {[%emt 0:01:35]} 23. Rge3 {[%emt 0:01:44]} R8d7 {[%emt 0:03:29]} 24. f3 {[%emt 0:01:34]} Qg5 {[%emt 0:04:46]} 25. Kf1 {[%emt 0:01:38]} Qg3 {[%emt 0:03:41]} 26. Be4 {[%emt 0:01:40]} Bxe4 {[%emt 0:01:50]} 27. Rxe4 {[%emt 0:03:44]} Rd2 {[%emt 0:01:08]} 28. R4e2 {[%emt 0:01:30]} Rxe2 {[%emt 0:02:25]} 29. Rxe2 {[%emt 0:00:58]} Rd1+ {[%emt 0:00:07]} 30. Re1 {[%emt 0:00:22]} Qxe1+ {[%emt 0:00:10]} 31. Qxe1 {[%emt 0:00:11]} Rxe1+ {[%emt 0:00:02]} 32. Kxe1 {[%emt 0:00:06]} Kg8 {[%emt 0:00:09]} 33. Ke2 {[%emt 0:00:36]} Kf8 {[%emt 0:00:13]} 34. Ke3 {[%emt 0:00:34]} Ke7 {[%emt 0:00:19]} 35. Ke4 {[%emt 0:00:25]} g5 {[%emt 0:00:42]} 36. g4 {[%emt 0:00:41]} f6 {[%emt 0:01:12]} 37. a4 {[%emt 0:01:35]} Kd6 {[%emt 0:00:51]} 38. b3 {[%emt 0:00:48]} a6 {[%emt 0:01:50]} 39. f4 {[%emt 0:01:03]} gxf4 {[%emt 0:00:47]} 40. Kxf4 {[%emt 0:00:08]} Ke7 {[%emt 0:00:24]} 41. h4 {[%emt 0:01:17]} Kf7 {[%emt 0:00:24]} 42. h5 {[%emt 0:00:20]} Ke7 {[%emt 0:02:18]} 43. Ke4 {[%emt 0:02:14]} Kd6 {[%emt 0:00:19]} 44. Kf4 {[%emt 0:00:46]} Kc6 {[%emt 0:00:12]} 45. Ke4 {[%emt 0:01:05]} b5 {[%emt 0:00:29]} 46. a5 {[%emt 0:00:43]} b4 {[%emt 0:03:14]} 47. Kf4 {[%emt 0:01:23]} Kd6 {[%emt 0:00:06]} 48. Ke4 {[%emt 0:00:38]} Ke7 {[%emt 0:00:14]} 49. Kf4 {[%emt 0:00:29]} e5+ {[%emt 0:00:17]} 50. Kf3 {[%emt 0:01:20]} Ke6 {[%emt 0:01:51]} 51. Ke4 {[%emt 0:00:09]} f5+ {[%emt 0:00:33]} 52. gxf5+ {[%emt 0:00:13]} Kf6 {[%emt 0:00:01]} 53. Kd5 {[%emt 0:01:21]} Kxf5 {[%emt 0:00:06]} 54. Kxc5 {[%emt 0:00:22]} e4 {[%emt 0:01:07]} 55. Kd6 {[%emt 0:06:16]} e3 {[%emt 0:00:10]} 56. c5 {[%emt 0:00:07]} e2 {[%emt 0:00:03]} 57. c6 {[%emt 0:00:07]} e1=Q {[%emt 0:00:03]} 58. c7 {[%emt 0:00:14]} Qe6+ {[%emt 0:00:11]} 59. Kc5 {[%emt 0:00:15]} Ke5 {[%emt 0:00:37]} 60. Kxb4 {[%emt 0:00:29]} Qd6+ {[%emt 0:00:11]} 61. Ka4 {[%emt 0:00:18]} Qxc7 {[%emt 0:00:42]} 62. b4 {[%emt 0:00:18]} Kd4 {[%emt 0:00:12]} 63. b5 {[%emt 0:00:10]} Qc4+ {[%emt 0:00:06]} 64. Ka3 {[%emt 0:00:14]} Qxb5 {[%emt 0:00:03]} 65. Ka2 {[%emt 0:00:15]} Kc3 {[%emt 0:00:02]} 66. Ka1 {[%emt 0:00:13]} Qb2# 0-1